bitfinex-derivatives/quotes_BTCF0:USTF0_20251119
["timestamp","ask_amount","ask_price","bid_price","bid_amount"]
[1763575501743,0.04393,89594.0,89555.0,0.00011358]
[1763575501921,0.21088329,89590.0,89564.0,0.00219803]
[1763575502225,5.114e-05,89589.0,89570.0,0.21088329]
[1763575502430,5.114e-05,89589.0,89588.0,0.04695803]
[1763575502627,0.05508,89604.0,89603.0,0.04476]
[1763575502926,0.0802453,89642.0,89603.0,0.04476]
[1763575502927,0.00016738,89612.0,89611.0,0.04476]
[1763575503124,0.1084,89617.0,89612.0,0.00219803]
[1763575503515,0.00016738,89620.0,89616.0,0.1116789]
[1763575503829,0.00016738,89620.0,89603.0,0.00016738]
[1763575503830,0.02246738,89620.0,89619.0,0.00219803]
[1763575504224,0.04549,89604.0,89603.0,0.00016738]
[1763575504416,0.04768803,89604.0,89603.0,0.00090005]
[1763575504617,0.04768803,89604.0,89603.0,0.00016738]
[1763575504822,0.04768803,89604.0,89568.0,0.01264]
[1763575505020,0.22416329,89600.0,89572.0,0.00073267]
[1763575505329,0.02449803,89573.0,89572.0,0.00073267]
[1763575506233,0.00219803,89573.0,89572.0,0.00073267]
[1763575506625,0.00219803,89573.0,89572.0,0.00173267]
[1763575507230,0.00016738,89581.0,89580.0,0.1564847]
[1763575507531,0.00016738,89581.0,89580.0,0.15721737]
[1763575509117,0.00016738,89581.0,89580.0,0.04649267]
[1763575509327,0.04785541,89581.0,89580.0,0.00173267]
[1763575510019,0.00236541,89581.0,89580.0,0.04649267]
[1763575510229,0.04785541,89581.0,89580.0,0.00173267]
[1763575511130,0.00236541,89581.0,89580.0,0.04649267]
[1763575511332,0.00016738,89581.0,89580.0,0.04649267]
[1763575511631,0.01328,89616.0,89580.0,0.04649267]
[1763575511824,0.04549,89581.0,89580.0,0.00173267]
[1763575512128,0.04768803,89581.0,89580.0,0.00173267]
[1763575512622,0.04768803,89581.0,89580.0,0.00073267]
[1763575512824,0.00219803,89581.0,89580.0,0.04649267]
[1763575513332,0.04768803,89581.0,89580.0,0.00173267]
[1763575513732,0.00016738,89589.0,89580.0,0.04549267]
[1763575513922,0.00016738,89589.0,89580.0,0.00173267]
[1763575513923,0.04549,89581.0,89580.0,0.00173267]
[1763575514122,0.04768803,89581.0,89580.0,0.00173267]
[1763575514428,0.04768803,89581.0,89580.0,0.11345737]
[1763575514429,0.02449803,89581.0,89580.0,0.11345737]
[1763575514625,0.00016738,89589.0,89588.0,0.04476]
[1763575514824,0.00236541,89589.0,89588.0,0.04549267]
[1763575515132,0.00236541,89589.0,89588.0,0.00073267]
[1763575515331,0.00236541,89589.0,89588.0,0.02327267]
[1763575515625,0.00016738,89589.0,89588.0,0.04549267]
[1763575516027,0.704,89634.0,89588.0,0.04549267]
[1763575516028,0.05321436,89616.0,89588.0,0.00073267]
[1763575516224,0.00219803,89613.0,89606.0,0.1116921]
[1763575516425,0.04768803,89613.0,89612.0,0.00073267]
[1763575517329,0.04768803,89613.0,89604.0,0.00016738]
[1763575517330,0.04549,89605.0,89604.0,0.00016738]
[1763575517627,0.0223,89585.0,89584.0,0.03998611]
[1763575517832,0.0223,89585.0,89584.0,0.00073267]
[1763575517833,0.02449803,89585.0,89584.0,0.00073267]
[1763575518632,0.04768803,89585.0,89584.0,0.00073267]
[1763575520827,0.04549,89577.0,89576.0,0.00016738]
[1763575521133,0.04768803,89577.0,89576.0,0.00016738]
[1763575521335,0.04768803,89577.0,89576.0,0.00090005]
[1763575521634,0.02449803,89577.0,89576.0,0.00090005]
[1763575521834,0.00219803,89577.0,89576.0,0.04566005]
[1763575522131,0.00219803,89577.0,89576.0,0.04666005]
[1763575522336,0.00219803,89577.0,89576.0,0.04766005]
[1763575523033,0.00016738,89593.0,89576.0,0.04766005]
[1763575523034,0.00016738,89593.0,89579.0,0.1117248]
[1763575523236,0.2647387,89610.0,89576.0,0.00290005]
[1763575523237,0.03993436,89606.0,89592.0,0.04549267]
[1763575523537,0.03993436,89606.0,89592.0,0.00073267]
[1763575523538,0.00219803,89606.0,89592.0,0.00073267]
[1763575523837,0.00219803,89606.0,89588.0,0.03987228]
[1763575524037,0.00219803,89606.0,89586.0,0.1117167]
[1763575524238,0.00219803,89606.0,89580.0,0.01044]
[1763575524440,0.00219803,89606.0,89561.0,0.08860961]
[1763575524441,0.00016738,89605.0,89587.0,0.00016738]
[1763575524633,0.04768803,89588.0,89587.0,0.00016738]
[1763575525030,0.02449803,89588.0,89587.0,0.00016738]
[1763575525845,0.04651803,89588.0,89587.0,0.00016738]
[1763575526534,0.00219803,89588.0,89587.0,0.04461738]
[1763575526739,0.01328,89600.0,89587.0,0.04461738]
[1763575526933,0.00219803,89599.0,89598.0,0.04445]
[1763575527635,0.00219803,89599.0,89596.0,0.1117046]
[1763575527636,0.00016738,89605.0,89604.0,0.1561448]
[1763575527938,0.03764,89631.0,89608.0,0.1116894]
[1763575528138,0.26693673,89630.0,89600.0,0.01044]
[1763575528325,0.03993436,89629.0,89585.0,0.1117179]
[1763575528529,0.26693673,89630.0,89551.0,0.16551706]
[1763575528530,0.03993436,89626.0,89591.0,0.1117103]
[1763575528725,0.04434,89601.0,89600.0,0.00016738]
[1763575528926,0.04653803,89601.0,89600.0,0.00016738]
[1763575530940,0.04434,89586.0,89585.0,0.002]
[1763575531134,0.04653803,89586.0,89585.0,0.002]
[1763575531330,0.00219803,89586.0,89585.0,0.002]
[1763575531530,0.00219803,89586.0,89578.0,0.1117267]
[1763575531741,0.00219803,89586.0,89571.0,0.111735]
[1763575532037,0.00219803,89586.0,89585.0,0.04348]
[1763575532342,0.02427803,89586.0,89570.0,0.00016738]
[1763575532547,0.00219803,89586.0,89585.0,0.04348]
[1763575533334,0.00016738,89587.0,89573.0,0.111733]
[1763575533335,0.00016738,89587.0,89586.0,0.1551973]
[1763575533745,0.03993436,89615.0,89592.0,0.1117097]
[1763575533934,0.00219803,89614.0,89584.0,0.01298]
[1763575534140,0.00219803,89614.0,89592.0,0.1117093]
[1763575534340,0.04213239,89614.0,89574.0,0.07996121]
[1763575534545,0.03993436,89612.0,89586.0,0.1117165]
[1763575534745,0.00219803,89587.0,89586.0,0.1117165]
[1763575534954,0.00219803,89587.0,89586.0,0.1551965]
[1763575535158,0.00016738,89608.0,89597.0,0.1117027]
[1763575535354,0.00016738,89608.0,89600.0,0.1116992]
[1763575535355,0.00219803,89607.0,89600.0,0.1116992]
[1763575535553,0.00219803,89607.0,89599.0,0.1117002]
[1763575535854,0.00219803,89607.0,89602.0,0.1116972]
[1763575536460,0.00219803,89607.0,89606.0,0.1551723]
[1763575536756,0.00219803,89607.0,89584.0,0.01051]
[1763575536757,0.02427803,89607.0,89598.0,0.00016738]
[1763575536948,0.04509,89599.0,89598.0,0.00016738]
[1763575537153,0.04728803,89599.0,89598.0,0.00016738]
[1763575537460,0.00219803,89599.0,89598.0,0.02179738]
[1763575537656,0.04728803,89599.0,89598.0,0.00016738]
[1763575538660,0.00219803,89599.0,89598.0,0.02179738]
[1763575538857,0.00219803,89599.0,89598.0,0.04364738]
[1763575539761,0.04728803,89599.0,89598.0,0.00016738]
[1763575540664,0.44728803,89599.0,89570.0,0.1117365]
[1763575540861,0.04509,89567.0,89566.0,0.00027913]
[1763575541054,0.04728803,89567.0,89566.0,0.00027913]
[1763575541462,0.04509,89556.0,89555.0,0.00011358]
[1763575541666,0.04728803,89556.0,89555.0,0.00011358]
[1763575542062,0.04628803,89556.0,89555.0,0.00011358]
[1763575542260,0.15468803,89556.0,89555.0,0.00011358]
[1763575543752,0.15468803,89556.0,89555.0,0.00311358]
[1763575544656,0.04509,89548.0,89547.0,0.00016748]
[1763575544862,0.04728803,89548.0,89547.0,0.00016748]
[1763575545064,0.04728803,89548.0,89520.0,0.01298]
[1763575545661,8.379e-05,89547.0,89521.0,0.05986179]
[1763575545868,0.00219803,89546.0,89535.0,0.1117808]
[1763575546167,0.00219803,89546.0,89532.0,0.00016748]
[1763575546361,0.00219803,89546.0,89545.0,0.02163]
[1763575546566,0.08671803,89546.0,89545.0,0.02163]
[1763575546768,0.00016748,89549.0,89545.0,0.02163]
[1763575546769,0.02208,89548.0,89547.0,0.00071818]
[1763575546963,0.15422267,89548.0,89547.0,0.00071818]
[1763575547369,0.15422267,89548.0,89540.0,0.1117739]
[1763575547564,0.15422267,89548.0,89547.0,0.00219803]
[1763575547765,0.00073267,89548.0,89547.0,0.04567803]
[1763575547966,0.00073267,89548.0,89547.0,0.04767803]
[1763575548169,0.01199,89580.0,89561.0,0.1117475]
[1763575548474,0.02208,89546.0,89545.0,0.001]
[1763575548658,0.02208,89546.0,89543.0,0.1117708]
[1763575548659,0.02427803,89546.0,89543.0,0.1117708]
[1763575548858,0.02327803,89546.0,89543.0,0.1117708]
[1763575549057,0.01273,89565.0,89543.0,0.1117708]
[1763575549058,0.01273,89565.0,89545.0,0.04348]
[1763575549263,0.06764551,89564.0,89553.0,0.1117581]
[1763575549458,0.11080551,89564.0,89550.0,0.111762]
[1763575549667,0.11080551,89564.0,89546.0,0.00016748]
[1763575549868,0.00236551,89564.0,89562.0,0.1117468]
[1763575550067,0.09628,89563.0,89552.0,0.1117597]
[1763575550258,0.00219803,89553.0,89552.0,0.1552397]
[1763575550659,0.00219803,89553.0,89552.0,0.04348]
[1763575550868,0.02427803,89553.0,89546.0,0.00116748]
[1763575551264,0.02427803,89553.0,89552.0,0.04448]
[1763575551265,0.00219803,89553.0,89552.0,0.04448]
[1763575551571,0.00219803,89553.0,89552.0,0.04548]
[1763575551769,0.06088748,89564.0,89563.0,0.133376]
[1763575551964,0.11076551,89564.0,89563.0,0.02163]
[1763575552164,0.00236551,89564.0,89563.0,0.02163]
[1763575552360,0.00236551,89564.0,89563.0,0.04348]
[1763575553269,0.00016748,89564.0,89563.0,0.04348]
[1763575553468,0.00236551,89564.0,89563.0,0.04348]
[1763575553967,0.00236551,89564.0,89563.0,0.155226]
[1763575554564,0.00236551,89564.0,89563.0,0.04348]
[1763575556075,0.02444551,89564.0,89553.0,0.1117579]
[1763575556269,0.02444551,89564.0,89550.0,0.01298]
[1763575556674,0.00236551,89564.0,89563.0,0.04348]
[1763575559379,0.01273,89595.0,89565.0,0.1117431]
[1763575559678,0.06613,89579.0,89570.0,0.1117363]
[1763575559976,0.06613,89579.0,89572.0,0.1117336]
[1763575559977,0.00219803,89578.0,89572.0,0.1117336]
[1763575560367,0.00219803,89578.0,89560.0,0.2647387]
[1763575560368,0.00219803,89578.0,89570.0,0.1117367]
[1763575560568,0.00219803,89578.0,89574.0,0.1117312]
[1763575560769,0.02208,89575.0,89574.0,0.1117312]
[1763575561082,0.00219803,89575.0,89574.0,0.1552112]
[1763575561686,0.04544803,89575.0,89566.0,0.00016748]
[1763575561972,0.02126,89570.0,89569.0,0.1117385]
[1763575562179,0.04243,89567.0,89566.0,0.00016748]
[1763575562381,0.04462803,89567.0,89566.0,0.00016748]
[1763575562674,0.00219803,89567.0,89566.0,0.04432748]
[1763575563069,0.00016748,89584.0,89577.0,0.02264]
[1763575563278,0.00219803,89583.0,89582.0,0.04416]
[1763575563676,0.00219803,89583.0,89570.0,0.2647387]
[1763575563677,0.04243,89571.0,89570.0,0.1117362]
[1763575563982,0.00219803,89571.0,89570.0,0.1558962]
[1763575564985,0.00219803,89571.0,89570.0,0.1558973]
[1763575565368,0.00219803,89571.0,89564.0,0.03979012]
[1763575565369,0.03924,89609.0,89608.0,0.04416]
[1763575565576,0.0401272,89619.0,89618.0,0.1116774]
[1763575565776,0.06516,89643.0,89630.0,0.04416]
[1763575565967,0.00219803,89630.0,89610.0,0.0138]
[1763575566172,0.00219803,89630.0,89610.0,0.2785387]
[1763575566470,0.0001107,89629.0,89612.0,0.1116841]
[1763575566676,0.00219803,89628.0,89612.0,0.1116841]
[1763575567074,0.00219803,89628.0,89611.0,0.00016737]
[1763575567488,0.00219803,89628.0,89612.0,0.1116848]
[1763575567668,0.00219803,89628.0,89612.0,0.001]
[1763575567873,0.00219803,89628.0,89613.0,0.1116835]
[1763575568176,0.00219803,89628.0,89618.0,0.1116768]
[1763575568367,0.00219803,89628.0,89613.0,0.1116824]
[1763575568571,0.00219803,89628.0,89612.0,0.001]
[1763575568767,0.00219803,89628.0,89627.0,0.04416]
[1763575571079,0.0001107,89629.0,89628.0,0.1558249]
[1763575571480,0.0001107,89629.0,89628.0,0.04416]
[1763575572180,0.0001107,89629.0,89611.0,0.11185347]
[1763575572181,0.04473873,89629.0,89611.0,0.00016737]
[1763575572578,0.01378,89628.0,89611.0,0.00016737]
[1763575572772,0.00219803,89627.0,89611.0,0.00016737]
[1763575572973,0.04243,89612.0,89611.0,0.00016737]
[1763575573183,0.04243,89612.0,89580.0,0.2647387]
[1763575573184,0.04462803,89612.0,89581.0,0.1117225]
[1763575573376,0.04462803,89612.0,89580.0,0.2775587]
[1763575573576,0.04462803,89612.0,89580.0,0.01282]
[1763575574081,0.04462803,89612.0,89580.0,0.2775587]
[1763575574275,0.00016737,89605.0,89587.0,0.00016737]
[1763575574476,0.00219803,89588.0,89587.0,0.02280737]
[1763575574676,0.00219803,89588.0,89587.0,0.04432737]
[1763575575582,0.04462803,89588.0,89587.0,0.00016737]
[1763575576087,0.02345803,89588.0,89587.0,0.00016737]
[1763575576272,0.00016737,89605.0,89604.0,0.04416]
[1763575576472,0.0023654,89605.0,89587.0,0.00016737]
[1763575576690,0.01378,89600.0,89587.0,0.00016737]
[1763575576984,0.00219803,89588.0,89587.0,0.00016737]
[1763575577482,0.04462803,89588.0,89587.0,0.00016737]
[1763575578486,0.00219803,89588.0,89587.0,0.04432737]
[1763575580388,0.00016737,89605.0,89604.0,0.04416]
[1763575580687,0.0023654,89605.0,89604.0,0.04416]
[1763575581483,0.0023654,89605.0,89604.0,0.02264]
[1763575581679,0.0023654,89605.0,89587.0,0.00016737]
[1763575581680,0.0246254,89605.0,89587.0,0.00016737]
[1763575581880,0.0246254,89605.0,89599.0,0.111701]
[1763575582080,0.0246254,89605.0,89594.0,0.1117062]
[1763575582287,0.0246254,89605.0,89602.0,0.1116966]
[1763575582682,0.0256254,89605.0,89602.0,0.1116966]
[1763575583286,0.0256254,89605.0,89597.0,0.1117035]
[1763575583587,0.0256254,89605.0,89587.0,0.00016737]
[1763575583887,0.02126,89588.0,89587.0,0.00016737]
[1763575584089,0.04462803,89588.0,89587.0,0.00016737]
[1763575584787,0.04462803,89588.0,89587.0,0.00116737]
[1763575585481,0.04462803,89588.0,89587.0,0.00216737]
[1763575585988,0.04462803,89588.0,89587.0,0.00116737]
[1763575586194,0.00219803,89588.0,89587.0,0.15783337]
[1763575586685,0.06656,89600.0,89599.0,0.04427]
[1763575586891,0.06875803,89600.0,89599.0,0.04427]
[1763575587376,0.00219803,89600.0,89599.0,0.04427]
[1763575587579,0.00016737,89605.0,89604.0,0.1559648]
[1763575587878,0.0023654,89605.0,89604.0,0.04427]
[1763575588087,0.00016737,89605.0,89604.0,0.04427]
[1763575588582,0.08776,89629.0,89625.0,0.04427]
[1763575588886,0.0802453,89644.0,89614.0,0.00679]
[1763575588887,0.0802453,89668.0,89661.0,0.1116238]
[1763575589090,0.01303,89684.0,89652.0,0.21047705]
[1763575589381,0.03997248,89681.0,89674.0,0.21047705]
[1763575589576,0.00219803,89680.0,89674.0,0.21047705]
[1763575589974,0.04381,89670.0,89669.0,0.00016726]
[1763575590187,0.04600803,89670.0,89669.0,0.00016726]
[1763575590384,0.01303,89641.0,89630.0,0.02979274]
[1763575590686,0.00219803,89640.0,89631.0,0.21062117]
[1763575591488,0.00219803,89640.0,89631.0,0.21262117]
[1763575591688,0.00219803,89640.0,89631.0,0.00414412]
[1763575592091,0.03997248,89639.0,89631.0,0.00414412]
[1763575592279,0.00219803,89638.0,89631.0,0.00214412]
[1763575592484,0.00219803,89638.0,89631.0,0.00314412]
[1763575593687,0.00219803,89638.0,89631.0,0.00114412]
[1763575593994,0.05889,89632.0,89631.0,0.00214412]
[1763575594182,0.06108803,89632.0,89631.0,0.00214412]
[1763575594381,0.10106051,89632.0,89631.0,0.00114412]
[1763575594790,0.10106051,89632.0,89631.0,0.00014412]
[1763575595379,0.04547,89628.0,89601.0,0.02979274]
[1763575595581,0.04547,89596.0,89595.0,0.02985269]
[1763575595777,0.02214,89593.0,89592.0,0.02985269]
[1763575595982,0.04547,89589.0,89587.0,0.02985269]
[1763575596178,0.00219803,89588.0,89585.0,0.02985269]
[1763575596383,0.00219803,89588.0,89580.0,0.21047705]
[1763575596384,0.00010404,89587.0,89581.0,0.02985269]
[1763575596584,0.00219803,89586.0,89581.0,0.02985269]
[1763575596781,0.00219803,89586.0,89583.0,0.02985269]
[1763575596986,0.00219803,89586.0,89581.0,0.02985269]
[1763575597392,0.00219803,89586.0,89580.0,0.24032974]
[1763575597689,0.04547,89581.0,89578.0,0.03002005]
[1763575597881,0.04766803,89579.0,89578.0,0.00016736]
[1763575598078,0.04766803,89579.0,89561.0,0.02985269]
[1763575598079,0.04547,89569.0,89561.0,0.02985269]
[1763575598287,0.02214,89561.0,89559.0,0.02985269]
[1763575598481,0.00228365,89560.0,89556.0,0.02985269]
[1763575598781,0.01342,89556.0,89551.0,0.02985269]
[1763575598986,0.00219803,89552.0,89549.0,0.02987019]
[1763575599293,0.00219803,89552.0,89545.0,0.00030802]
[1763575599493,0.03997248,89551.0,89545.0,0.00030802]
[1763575599695,0.00219803,89546.0,89545.0,0.00030802]
[1763575600092,0.04766803,89546.0,89545.0,0.00030802]
[1763575600482,0.04666803,89546.0,89545.0,0.00230802]
[1763575600685,0.05889,89539.0,89530.0,0.21047705]
[1763575600998,0.05889,89539.0,89526.0,0.00027925]
[1763575600999,0.0598207,89539.0,89526.0,0.00027925]
[1763575601198,0.04547,89519.0,89516.0,0.02987019]
[1763575601385,0.01342,89522.0,89516.0,0.02987019]
[1763575601386,0.0019307,89517.0,89516.0,0.001]
[1763575601585,0.0474007,89517.0,89516.0,0.001]
[1763575601890,0.04748382,89517.0,89516.0,0.001]
[1763575602198,0.02214,89511.0,89508.0,0.00016756]
[1763575602386,0.02214,89511.0,89509.0,0.001]
[1763575602589,0.0019307,89510.0,89509.0,0.001]
[1763575602891,0.0240707,89510.0,89509.0,0.001]
[1763575603193,0.0240707,89510.0,89508.0,0.00016756]
[1763575603194,0.08609393,89510.0,89508.0,0.00016756]
[1763575603498,0.04547,89509.0,89508.0,0.00016756]
[1763575603795,0.0464007,89509.0,89508.0,0.00016756]
[1763575604302,0.0464007,89509.0,89508.0,0.00216756]
[1763575604490,0.0230707,89509.0,89508.0,0.00216756]
[1763575604686,0.0009307,89509.0,89508.0,0.00216756]
[1763575605195,0.0230707,89509.0,89508.0,0.00216756]
[1763575605390,0.0009307,89509.0,89508.0,0.00216756]
[1763575606203,0.04062393,89509.0,89508.0,0.00216756]
[1763575606390,0.0009307,89509.0,89508.0,0.00216756]
[1763575606898,0.0230707,89509.0,89508.0,0.00216756]
[1763575607099,0.0009307,89509.0,89508.0,0.00216756]
[1763575607585,0.0009307,89509.0,89508.0,0.00316756]
[1763575607993,0.04062393,89509.0,89508.0,0.00316756]
[1763575608289,0.08609393,89509.0,89508.0,0.00316756]
[1763575608694,0.08609393,89509.0,89508.0,0.00116756]
[1763575609086,0.08609393,89509.0,89508.0,0.00016756]
[1763575610109,0.02214,89491.0,89490.0,0.21047705]
[1763575610402,0.02321017,89491.0,89490.0,0.002]
[1763575611699,0.02321017,89491.0,89490.0,0.003]
[1763575611901,0.0862334,89491.0,89490.0,0.003]
[1763575612197,0.00016756,89499.0,89490.0,0.003]
[1763575612400,0.02143104,89499.0,89498.0,0.1118272]
[1763575612594,0.02236174,89499.0,89498.0,0.1138272]
[1763575612795,0.06783174,89499.0,89498.0,0.002]
[1763575613297,0.06795147,89499.0,89498.0,0.002]
[1763575614699,0.04547,89487.0,89486.0,0.00027937]
[1763575614905,0.0464007,89487.0,89486.0,0.00227937]
[1763575615103,0.06766418,89487.0,89486.0,0.00227937]
[1763575616802,0.06766418,89487.0,89448.0,0.02987019]
[1763575616803,0.01342,89460.0,89448.0,0.02987019]
[1763575616995,0.0009307,89459.0,89457.0,0.1118784]
[1763575617194,0.02219418,89459.0,89458.0,0.002]
[1763575617999,0.06775012,89459.0,89458.0,0.002]
[1763575618299,0.02228012,89459.0,89451.0,0.1118851]
[1763575618498,0.06775012,89459.0,89458.0,0.002]
[1763575618705,0.06775012,89459.0,89458.0,0.003]
[1763575618901,0.02228012,89459.0,89458.0,0.003]
[1763575620203,0.02134942,89459.0,89458.0,0.003]
[1763575620402,0.00016766,89467.0,89466.0,0.1118672]
[1763575620704,0.06783184,89467.0,89466.0,0.002]
[1763575621096,0.06783184,89467.0,89440.0,0.21047705]
[1763575621097,0.01342,89460.0,89440.0,0.21047705]
[1763575621299,0.01342,89460.0,89446.0,0.0022795]
[1763575621300,0.0464007,89447.0,89446.0,0.0022795]
[1763575621603,0.0454007,89447.0,89446.0,0.0002795]
[1763575621907,0.0444007,89447.0,89446.0,0.0002795]
[1763575622511,0.04323,89432.0,89431.0,0.11191]
[1763575622803,9.896e-05,89432.0,89431.0,0.11410803]
[1763575623303,0.01342,89460.0,89444.0,0.1118947]
[1763575623507,0.01342,89460.0,89459.0,0.11407393]
[1763575624305,0.01351571,89460.0,89459.0,0.11407393]
[1763575624697,0.03583571,89460.0,89459.0,0.11407393]
[1763575624898,0.03583571,89460.0,89451.0,0.00016766]
[1763575624899,0.04423,89452.0,89451.0,0.00016766]
[1763575625595,0.01351571,89460.0,89416.0,0.19188981]
[1763575625596,0.04423,89434.0,89433.0,0.1119084]
[1763575625801,0.01391,89440.0,89439.0,0.111901]
[1763575626098,0.05874571,89460.0,89459.0,0.111876]
[1763575626301,0.05874571,89460.0,89459.0,0.11407403]
[1763575626501,0.04423,89444.0,89443.0,0.02984043]
[1763575626700,0.04423,89444.0,89443.0,0.11409403]
[1763575626896,0.04423,89444.0,89443.0,0.00219803]
[1763575627508,0.04423,89437.0,89436.0,0.1119036]
[1763575627699,8.614e-05,89437.0,89436.0,0.11410163]
[1763575627896,8.614e-05,89437.0,89436.0,0.14394206]
[1763575628203,8.614e-05,89437.0,89436.0,0.11410163]
[1763575628204,0.04431614,89437.0,89436.0,0.11410163]
[1763575628607,8.614e-05,89437.0,89436.0,0.11410163]
[1763575629110,0.04431614,89437.0,89436.0,0.03211536]
[1763575629297,0.04431614,89437.0,89436.0,0.00219803]
[1763575629806,0.04431614,89437.0,89436.0,0.11410273]
[1763575630202,0.04431614,89437.0,89436.0,0.00219803]
[1763575631312,0.04423,89443.0,89442.0,0.1118964]
[1763575631496,0.04423,89443.0,89442.0,0.03214398]
[1763575631696,0.04423,89443.0,89442.0,0.11409523]
[1763575631902,0.04423,89443.0,89442.0,0.00219803]
[1763575632104,0.04423,89443.0,89435.0,0.02994595]
[1763575632409,0.04423,89436.0,89435.0,0.03214398]
[1763575632606,0.04423,89435.0,89432.0,0.02994827]
[1763575632808,0.04423,89427.0,89426.0,0.21047705]
[1763575633110,0.04423,89423.0,89422.0,0.1119223]
[1763575633314,0.04423,89423.0,89422.0,0.11412033]
[1763575633613,0.04423,89423.0,89422.0,0.15404825]
[1763575634005,0.01391,89424.0,89422.0,0.15404825]
[1763575634315,0.01391,89424.0,89422.0,0.04212595]
[1763575634316,0.04423,89423.0,89422.0,0.04212595]
[1763575634500,0.04423,89423.0,89422.0,0.04312595]
[1763575634704,0.04423,89423.0,89422.0,0.00319803]
[1763575635206,0.04423,89420.0,89419.0,0.11206793]
[1763575635410,0.04642803,89420.0,89419.0,0.00014283]
[1763575635611,0.04942948,89420.0,89419.0,0.1128015]
[1763575636201,0.04942948,89420.0,89419.0,0.00014283]
[1763575636407,0.04323,89407.0,89406.0,0.00027962]
[1763575636607,0.04542803,89407.0,89406.0,0.00101229]
[1763575637314,0.04552464,89407.0,89406.0,0.00101229]
[1763575637511,0.04552464,89407.0,89406.0,0.00201229]
[1763575637714,0.00229464,89407.0,89406.0,0.00201229]
[1763575637903,0.04439776,89415.0,89414.0,0.1119323]
[1763575638108,0.04659579,89415.0,89414.0,0.11266497]
[1763575638316,0.05646481,89415.0,89414.0,0.00073267]
[1763575638516,0.22438705,89440.0,89414.0,0.00073267]
[1763575638517,0.05814,89440.0,89439.0,0.111901]
[1763575638812,0.06033803,89440.0,89439.0,0.00073267]
[1763575639016,0.06039972,89440.0,89439.0,0.00073267]
[1763575640004,0.06139972,89440.0,89439.0,0.00073267]
[1763575640919,0.04423,89432.0,89431.0,0.00016776]
[1763575641115,0.04642803,89432.0,89431.0,0.00090043]
[1763575641712,0.04642803,89432.0,89418.0,0.05986179]
[1763575641713,0.04423,89420.0,89419.0,0.03992792]
[1763575641914,0.04642803,89420.0,89419.0,0.00073267]
[1763575642310,0.04423,89411.0,89410.0,0.32241435]
[1763575642512,0.02451803,89411.0,89410.0,0.15267296]
[1763575642904,0.00219803,89411.0,89410.0,0.15267296]
[1763575643218,0.00219803,89411.0,89410.0,0.11266997]
[1763575643417,0.00016776,89419.0,89418.0,0.1119273]
[1763575643614,0.00016776,89419.0,89418.0,0.11265997]
[1763575643803,0.04659579,89419.0,89418.0,0.11265997]
[1763575644004,0.00236579,89419.0,89418.0,0.11265997]
[1763575644317,0.04659579,89419.0,89418.0,0.11265997]
[1763575644521,0.04659579,89419.0,89418.0,0.06079979]
[1763575645111,0.04659579,89419.0,89418.0,0.00073267]
[1763575645815,0.04659579,89419.0,89418.0,0.11265997]
[1763575646625,0.04507,89408.0,89407.0,0.111941]
[1763575646916,0.00219803,89408.0,89407.0,0.13629367]
[1763575647514,0.00219803,89408.0,89407.0,0.12448367]
[1763575647716,0.04726803,89408.0,89407.0,0.11267367]
[1763575647910,0.02506803,89408.0,89407.0,0.11267367]
[1763575648111,0.00219803,89408.0,89407.0,0.13629367]
[1763575648511,0.04726803,89408.0,89407.0,0.11267367]
[1763575649321,0.04726803,89408.0,89407.0,0.00073267]
[1763575650122,0.04726803,89408.0,89407.0,0.11267367]
[1763575651023,0.054273,89408.0,89407.0,0.11267367]
[1763575651434,0.054273,89408.0,89407.0,0.00073267]
[1763575651735,0.054273,89408.0,89382.0,0.19193301]
[1763575651736,0.04519,89387.0,89382.0,0.19193301]
[1763575651937,6.169e-05,89386.0,89385.0,0.02362]
[1763575652135,0.04744972,89386.0,89385.0,0.00073267]
[1763575652531,0.00225972,89386.0,89385.0,0.02435267]
[1763575652930,0.02420972,89386.0,89385.0,0.02435267]
[1763575653137,0.00225972,89386.0,89385.0,0.02435267]
[1763575653629,0.02420972,89386.0,89385.0,0.02535267]
[1763575653831,0.04744972,89386.0,89385.0,0.00173267]
[1763575654735,0.07647744,89386.0,89385.0,0.001]
[1763575654934,0.02195,89371.0,89370.0,0.27743529]
[1763575655131,0.00219803,89371.0,89370.0,0.02435267]
[1763575655742,0.02414803,89371.0,89370.0,0.02435267]
[1763575655943,0.04638803,89371.0,89370.0,0.00073267]
[1763575656336,0.04638803,89371.0,89370.0,0.04082659]
[1763575656752,0.04638803,89371.0,89370.0,0.00173267]
[1763575657344,6.169e-05,89386.0,89370.0,0.06544659]
[1763575657640,0.04519,89380.0,89379.0,0.1119753]
[1763575657843,0.04519,89371.0,89370.0,0.04109392]
[1763575658051,0.04638803,89371.0,89370.0,0.001]
[1763575658235,0.05239732,89371.0,89370.0,0.001]
[1763575658439,0.04519,89367.0,89366.0,0.00038571]
[1763575658646,0.04519,89387.0,89386.0,0.1119669]
[1763575658846,0.04644972,89387.0,89386.0,0.00173267]
[1763575659349,0.02195,89371.0,89370.0,0.1129868]
[1763575659547,0.04638803,89371.0,89370.0,0.001]
[1763575660641,0.04519,89367.0,89359.0,0.04006095]
[1763575660944,0.01315,89362.0,89359.0,0.1120012]
[1763575661147,0.05834,89362.0,89361.0,0.1119987]
[1763575661347,0.05953803,89362.0,89361.0,0.11373137]
[1763575661743,0.05953803,89362.0,89361.0,0.00173267]
[1763575662250,0.04519,89360.0,89359.0,0.001]
[1763575662450,0.04638803,89360.0,89359.0,0.001]
[1763575662850,0.04519,89357.0,89356.0,0.1120042]
[1763575663044,0.04538803,89357.0,89356.0,0.11373687]
[1763575663247,0.04538803,89357.0,89356.0,0.12654687]
[1763575663437,0.04538803,89357.0,89356.0,0.11373687]
[1763575664049,0.02214803,89357.0,89356.0,0.12654687]
[1763575664854,0.04538803,89357.0,89356.0,0.11373757]
[1763575665653,0.04538803,89357.0,89356.0,0.00173267]
[1763575665844,0.00119803,89357.0,89356.0,0.02735267]
[1763575667455,0.00016785,89369.0,89368.0,0.1376099]
[1763575667750,0.00016785,89369.0,89368.0,0.13934257]
[1763575667942,0.0351,89390.0,89389.0,0.1119636]
[1763575668139,0.05953803,89390.0,89389.0,0.11369627]
[1763575668444,0.01434803,89390.0,89389.0,0.13931627]
[1763575668644,0.05794,89404.0,89396.0,0.1119546]
[1763575668848,0.01315,89390.0,89387.0,0.1119655]
[1763575669041,0.00119803,89390.0,89389.0,0.02735267]
[1763575669243,0.00230399,89390.0,89389.0,0.02735267]
[1763575669542,0.00210596,89390.0,89389.0,0.02735267]
[1763575669854,0.00016785,89397.0,89396.0,0.1375748]
[1763575670040,0.04519,89413.0,89412.0,0.1119336]
[1763575670245,0.04638803,89413.0,89412.0,0.00173267]
[1763575670852,0.04838934,89413.0,89412.0,0.00173267]
[1763575671248,0.02514934,89413.0,89412.0,0.01454267]